[Event "Titled Tuesday Blitz August 08 Late 2023"]
[White "Papasimakopoulos, Alexandros"]
[Black "Iturrizaga Bonelli, Eduardo"]
[WhiteFideId "4244125"]
[BlackFideId "3901211"]
[WhiteElo "2706"]
[BlackElo "2952"]
[Result "0-1"]
[Round "3"]
[TimeControl "180+1"]
[Date "2023.08.08"]
[WhiteClock "0:00:26"]
[BlackClock "0:00:24"]
[Board "11"]

1. d4 {[%clk 0:03:00]}  Nf6 {[%clk 0:03:00]} 2. c4 {[%clk 0:02:59]}  e6 {[%clk 0:03:01]} 3. Nc3 {[%clk 0:02:59]}  Bb4 {[%clk 0:03:01]} 4. Qc2 {[%clk 0:02:58]}  O-O {[%clk 0:03:01]} 5. a3 {[%clk 0:02:58]}  Bxc3+ {[%clk 0:03:01]} 6. Qxc3 {[%clk 0:02:59]}  b6 {[%clk 0:03:02]} 7. Bg5 {[%clk 0:02:59]}  Bb7 {[%clk 0:03:02]} 8. f3 {[%clk 0:02:59]}  h6 {[%clk 0:03:02]} 9. Bh4 {[%clk 0:02:58]}  d6 {[%clk 0:03:02]} 10. e4 {[%clk 0:02:58]}  e5 {[%clk 0:02:05]} 11. Bf2 {[%clk 0:02:44]}  Nc6 {[%clk 0:01:59]} 12. d5 {[%clk 0:02:43]}  Ne7 {[%clk 0:02:00]} 13. Bd3 {[%clk 0:02:42]}  Nh5 {[%clk 0:02:00]} 14. Ne2 {[%clk 0:02:42]}  Kh8 {[%clk 0:01:53]} 15. g4 {[%clk 0:02:41]}  Nf6 {[%clk 0:01:51]} 16. h4 {[%clk 0:02:41]}  Nd7 {[%clk 0:01:50]} 17. g5 {[%clk 0:02:39]}  h5 {[%clk 0:01:51]} 18. Ng3 {[%clk 0:02:37]}  g6 {[%clk 0:01:51]} 19. f4 {[%clk 0:02:37]}  Kh7 {[%clk 0:01:51]} 20. f5 {[%clk 0:02:37]}  a5 {[%clk 0:01:51]} 21. f6 {[%clk 0:02:35]}  Nc8 {[%clk 0:01:46]} 22. Qc2 {[%clk 0:02:32]}  Rh8 {[%clk 0:01:42]} 23. Qe2 {[%clk 0:02:23]}  Kg8 {[%clk 0:01:42]} 24. b3 {[%clk 0:02:23]}  Nc5 {[%clk 0:01:41]} 25. Bc2 {[%clk 0:02:23]}  Ba6 {[%clk 0:01:34]} 26. O-O {[%clk 0:02:20]}  Na7 {[%clk 0:01:17]} 27. b4 {[%clk 0:02:19]}  Nd7 {[%clk 0:01:18]} 28. Bd3 {[%clk 0:02:17]}  Bc8 {[%clk 0:01:16]} 29. bxa5 {[%clk 0:02:15]}  Nc5 {[%clk 0:01:11]} 30. axb6 {[%clk 0:02:14]}  cxb6 {[%clk 0:01:12]} 31. Bxc5 {[%clk 0:02:03]}  bxc5 {[%clk 0:01:11]} 32. Rfb1 {[%clk 0:01:59]}  Bg4 {[%clk 0:01:10]} 33. Qb2 {[%clk 0:01:58]}  Kh7 {[%clk 0:01:08]} 34. Qb6 {[%clk 0:01:57]}  Nc8 {[%clk 0:00:44]} 35. Qxd8 {[%clk 0:01:56]}  Rxd8 {[%clk 0:00:45]} 36. a4 {[%clk 0:01:52]}  Rd7 {[%clk 0:00:44]} 37. a5 {[%clk 0:01:48]}  Rda7 {[%clk 0:00:44]} 38. Be2 {[%clk 0:01:43]}  Bd7 {[%clk 0:00:43]} 39. Rb2 {[%clk 0:01:36]}  Kg8 {[%clk 0:00:43]} 40. Rba2 {[%clk 0:01:35]}  Rb8 {[%clk 0:00:42]} 41. a6 {[%clk 0:01:34]}  Rb3 {[%clk 0:00:41]} 42. Kf2 {[%clk 0:01:34]}  Nb6 {[%clk 0:00:40]} 43. Nf1 {[%clk 0:01:30]}  Rb4 {[%clk 0:00:38]} 44. Ne3 {[%clk 0:01:29]}  Bc8 {[%clk 0:00:39]} 45. Ke1 {[%clk 0:01:27]}  Na8 {[%clk 0:00:39]} 46. Nc2 {[%clk 0:01:23]}  Rb3 {[%clk 0:00:38]} 47. Kd2 {[%clk 0:01:19]}  Nc7 {[%clk 0:00:36]} 48. Bd3 {[%clk 0:01:19]}  Kf8 {[%clk 0:00:34]} 49. Ra3 {[%clk 0:01:16]}  Rb6 {[%clk 0:00:34]} 50. Kc3 {[%clk 0:01:11]}  Ke8 {[%clk 0:00:34]} 51. Ra5 {[%clk 0:01:11]}  Kd8 {[%clk 0:00:32]} 52. R1a4 {[%clk 0:01:11]}  Bd7 {[%clk 0:00:32]} 53. Ra1 {[%clk 0:01:10]}  Bc8 {[%clk 0:00:32]} 54. Be2 {[%clk 0:01:08]}  Nxa6 {[%clk 0:00:27]} 55. Bd1 {[%clk 0:00:56]}  Ra8 {[%clk 0:00:25]} 56. R1a3 {[%clk 0:00:54]}  Rab8 {[%clk 0:00:25]} 57. Kd2 {[%clk 0:00:50]}  Nc7 {[%clk 0:00:23]} 58. Ra7 {[%clk 0:00:48]}  Rb2 {[%clk 0:00:22]} 59. Bxh5 {[%clk 0:00:36]}  gxh5 {[%clk 0:00:12]} 60. g6 {[%clk 0:00:35]}  fxg6 {[%clk 0:00:13]} 61. f7 {[%clk 0:00:35]}  Ke7 {[%clk 0:00:14]} 62. Rxc7+ {[%clk 0:00:35]}  Kf8 {[%clk 0:00:14]} 63. Rg3 {[%clk 0:00:29]}  Bg4 {[%clk 0:00:14]} 64. Ra3 {[%clk 0:00:27]}  Rb1 {[%clk 0:00:14]} 65. Ne3 {[%clk 0:00:20]}  Rg1 {[%clk 0:00:13]} 66. Nxg4 {[%clk 0:00:19]}  Rxg4 {[%clk 0:00:13]} 67. Ra6 {[%clk 0:00:18]}  Rd8 {[%clk 0:00:12]} 68. Ke3 {[%clk 0:00:16]}  Rg3+ {[%clk 0:00:12]} 69. Kf2 {[%clk 0:00:16]}  Rg4 {[%clk 0:00:13]} 70. Kf3 {[%clk 0:00:16]}  Rxh4 {[%clk 0:00:12]} 71. Raa7 {[%clk 0:00:17]}  Rf4+ {[%clk 0:00:12]} 72. Ke3 {[%clk 0:00:17]}  h4 {[%clk 0:00:12]} 73. Re7 {[%clk 0:00:18]}  h3 {[%clk 0:00:12]} 74. Re6 {[%clk 0:00:18]}  Rg4 {[%clk 0:00:12]} 75. Ra1 {[%clk 0:00:17]}  Rg3+ {[%clk 0:00:11]} 76. Kf2 {[%clk 0:00:17]}  Rg4 {[%clk 0:00:12]} 77. Rh1 {[%clk 0:00:17]}  Rh4 {[%clk 0:00:12]} 78. Kg3 {[%clk 0:00:17]}  Rxe4 {[%clk 0:00:11]} 79. Rxh3 {[%clk 0:00:16]}  Re3+ {[%clk 0:00:11]} 80. Kg4 {[%clk 0:00:16]}  Rxh3 {[%clk 0:00:12]} 81. Kxh3 {[%clk 0:00:16]}  Kxf7 {[%clk 0:00:13]} 82. Kg4 {[%clk 0:00:17]}  e4 {[%clk 0:00:12]} 83. Kf4 {[%clk 0:00:17]}  e3 {[%clk 0:00:12]} 84. Kxe3 {[%clk 0:00:17]}  Re8 {[%clk 0:00:13]} 85. Rxe8 {[%clk 0:00:17]}  Kxe8 {[%clk 0:00:14]} 86. Kf4 {[%clk 0:00:13]}  Kf7 {[%clk 0:00:14]} 87. Kg5 {[%clk 0:00:12]}  Kg7 {[%clk 0:00:14]} 88. Kg4 {[%clk 0:00:12]}  Kf6 {[%clk 0:00:15]} 89. Kf4 {[%clk 0:00:12]}  g5+ {[%clk 0:00:16]} 90. Kg4 {[%clk 0:00:13]}  Kg6 {[%clk 0:00:16]} 91. Kf3 {[%clk 0:00:13]}  Kf5 {[%clk 0:00:17]} 92. Kg3 {[%clk 0:00:13]}  g4 {[%clk 0:00:15]} 93. Kf2 {[%clk 0:00:13]}  Kf4 {[%clk 0:00:15]} 94. Kg2 {[%clk 0:00:13]}  g3 {[%clk 0:00:15]} 95. Kg1 {[%clk 0:00:14]}  Ke4 {[%clk 0:00:15]} 96. Kg2 {[%clk 0:00:14]}  Kd4 {[%clk 0:00:16]} 97. Kxg3 {[%clk 0:00:15]}  Kxc4 {[%clk 0:00:17]} 98. Kf4 {[%clk 0:00:16]}  Kxd5 {[%clk 0:00:17]} 99. Ke3 {[%clk 0:00:17]}  Kc4 {[%clk 0:00:18]} 100. Kd2 {[%clk 0:00:18]}  d5 {[%clk 0:00:19]} 101. Kc1 {[%clk 0:00:19]}  d4 {[%clk 0:00:19]} 102. Kd1 {[%clk 0:00:19]}  Kd5 {[%clk 0:00:20]} 103. Kc1 {[%clk 0:00:20]}  c4 {[%clk 0:00:21]} 104. Kd1 {[%clk 0:00:21]}  c3 {[%clk 0:00:22]} 105. Kc1 {[%clk 0:00:22]}  Kc4 {[%clk 0:00:23]} 106. Kd1 {[%clk 0:00:23]}  d3 {[%clk 0:00:23]} 107. Kc1 {[%clk 0:00:24]}  Kd4 {[%clk 0:00:23]} 108. Kd1 {[%clk 0:00:24]}  Ke3 {[%clk 0:00:24]} 109. Ke1 {[%clk 0:00:25]}  c2 {[%clk 0:00:24]} 110. Kf1 {[%clk 0:00:26]}  Kf3 {[%clk 0:00:24]} 111. Ke1 {[%clk 0:00:26]}  c1=Q# {[%clk 0:00:24]} 0-1


[Site "https://www.chess.com"]

[Event "Titled Tuesday Blitz August 08 Late 2023"]
[White "Nguyen, Ngoc Truong Son"]
[Black "Jaferian, Koosha"]
[WhiteFideId "12401110"]
[BlackFideId "12507440"]
[WhiteElo "2950"]
[BlackElo "2706"]
[Result "1-0"]
[Round "3"]
[TimeControl "180+1"]
[Date "2023.08.08"]
[WhiteClock "0:01:34"]
[BlackClock "0:00:11"]
[Board "12"]

1. d4 {[%clk 0:02:57]}  Nf6 {[%clk 0:03:00]} 2. c4 {[%clk 0:02:57]}  e6 {[%clk 0:03:00]} 3. Nc3 {[%clk 0:02:58]}  Bb4 {[%clk 0:03:00]} 4. e3 {[%clk 0:02:57]}  O-O {[%clk 0:03:00]} 5. Bd3 {[%clk 0:02:56]}  d5 {[%clk 0:02:59]} 6. Ne2 {[%clk 0:02:54]}  dxc4 {[%clk 0:02:58]} 7. Bxc4 {[%clk 0:02:55]}  c5 {[%clk 0:02:59]} 8. O-O {[%clk 0:02:55]}  cxd4 {[%clk 0:02:59]} 9. exd4 {[%clk 0:02:55]}  b6 {[%clk 0:02:55]} 10. d5 {[%clk 0:02:53]}  e5 {[%clk 0:02:18]} 11. Bg5 {[%clk 0:02:51]}  Nbd7 {[%clk 0:02:08]} 12. d6 {[%clk 0:02:50]}  Bb7 {[%clk 0:02:06]} 13. Nb5 {[%clk 0:02:48]}  h6 {[%clk 0:01:56]} 14. Bh4 {[%clk 0:02:47]}  Bc6 {[%clk 0:01:44]} 15. Nc7 {[%clk 0:02:45]}  Rc8 {[%clk 0:01:41]} 16. Ba6 {[%clk 0:02:40]}  Rb8 {[%clk 0:01:39]} 17. a3 {[%clk 0:02:37]}  Bc5 {[%clk 0:01:32]} 18. b4 {[%clk 0:02:37]}  Bd4 {[%clk 0:01:27]} 19. Nxd4 {[%clk 0:02:36]}  exd4 {[%clk 0:01:28]} 20. Qxd4 {[%clk 0:02:34]}  b5 {[%clk 0:01:09]} 21. Rac1 {[%clk 0:02:19]}  Rb6 {[%clk 0:01:09]} 22. Rfd1 {[%clk 0:02:12]}  Re8 {[%clk 0:00:58]} 23. Nxe8 {[%clk 0:02:08]}  Qxe8 {[%clk 0:00:57]} 24. Rxc6 {[%clk 0:02:08]}  Rxc6 {[%clk 0:00:57]} 25. Bxb5 {[%clk 0:02:08]}  Rb6 {[%clk 0:00:51]} 26. a4 {[%clk 0:01:57]}  Qb8 {[%clk 0:00:31]} 27. Bxf6 {[%clk 0:01:54]}  Nxf6 {[%clk 0:00:32]} 28. d7 {[%clk 0:01:53]}  Qd8 {[%clk 0:00:33]} 29. Rc1 {[%clk 0:01:49]}  Rb8 {[%clk 0:00:23]} 30. Qxa7 {[%clk 0:01:47]}  Kh7 {[%clk 0:00:21]} 31. h3 {[%clk 0:01:45]}  Ra8 {[%clk 0:00:17]} 32. Qb7 {[%clk 0:01:39]}  Rb8 {[%clk 0:00:17]} 33. Qc8 {[%clk 0:01:36]}  Nxd7 {[%clk 0:00:12]} 34. Qxd8 {[%clk 0:01:34]}  Rxd8 {[%clk 0:00:11]} 35. Rd1 {[%clk 0:01:34]} 1-0


[Site "https://www.chess.com"]

[Event "Titled Tuesday Blitz August 08 Late 2023"]
[White "Matinian, Nikita"]
[Black "Suleymanli, Aydin"]
[WhiteFideId "24129100"]
[BlackFideId "13413937"]
[WhiteElo "2699"]
[BlackElo "2945"]
[Result "0-1"]
[Round "3"]
[TimeControl "180+1"]
[Date "2023.08.08"]
[WhiteClock "0:00:04"]
[BlackClock "0:00:36"]
[Board "13"]

1. e4 {[%clk 0:03:00]}  c5 {[%clk 0:02:59]} 2. Nf3 {[%clk 0:03:01]}  e6 {[%clk 0:02:54]} 3. d4 {[%clk 0:03:01]}  cxd4 {[%clk 0:02:54]} 4. Nxd4 {[%clk 0:03:02]}  Nf6 {[%clk 0:02:54]} 5. Nc3 {[%clk 0:03:02]}  Nc6 {[%clk 0:02:55]} 6. Nxc6 {[%clk 0:03:02]}  bxc6 {[%clk 0:02:56]} 7. e5 {[%clk 0:03:03]}  Nd5 {[%clk 0:02:56]} 8. Ne4 {[%clk 0:03:04]}  Bb7 {[%clk 0:02:57]} 9. c4 {[%clk 0:02:52]}  Nb4 {[%clk 0:02:56]} 10. c5 {[%clk 0:02:36]}  Qb8 {[%clk 0:02:52]} 11. Nd6+ {[%clk 0:02:24]}  Bxd6 {[%clk 0:02:52]} 12. exd6 {[%clk 0:02:23]}  Ba6 {[%clk 0:02:49]} 13. a3 {[%clk 0:02:14]}  Bxf1 {[%clk 0:02:33]} 14. Rxf1 {[%clk 0:02:15]}  Nd5 {[%clk 0:02:33]} 15. f4 {[%clk 0:02:12]}  a5 {[%clk 0:02:27]} 16. Rf3 {[%clk 0:02:10]}  Qb5 {[%clk 0:02:25]} 17. Qd4 {[%clk 0:02:09]}  f6 {[%clk 0:02:25]} 18. Bd2 {[%clk 0:02:00]}  a4 {[%clk 0:02:25]} 19. Rc1 {[%clk 0:01:56]}  Kf7 {[%clk 0:02:20]} 20. Rc4 {[%clk 0:01:49]}  Rhb8 {[%clk 0:02:13]} 21. Bb4 {[%clk 0:01:48]}  Rb7 {[%clk 0:01:58]} 22. h4 {[%clk 0:01:46]}  h5 {[%clk 0:01:58]} 23. Rg3 {[%clk 0:01:39]}  Rh8 {[%clk 0:01:56]} 24. Kf2 {[%clk 0:01:29]}  Rh6 {[%clk 0:01:51]} 25. Kg1 {[%clk 0:01:23]}  Rg6 {[%clk 0:01:48]} 26. Rxg6 {[%clk 0:01:22]}  Kxg6 {[%clk 0:01:49]} 27. Kh2 {[%clk 0:01:22]}  Kf7 {[%clk 0:01:40]} 28. Bc3 {[%clk 0:00:46]}  Ra7 {[%clk 0:01:34]} 29. Bb4 {[%clk 0:00:09]}  Rb7 {[%clk 0:01:32]} 30. Bc3 {[%clk 0:00:09]}  Ra7 {[%clk 0:01:33]} 31. Bb4 {[%clk 0:00:10]}  Ra8 {[%clk 0:01:34]} 32. Bc3 {[%clk 0:00:09]}  Qb3 {[%clk 0:01:33]} 33. Qd3 {[%clk 0:00:03]}  Rh8 {[%clk 0:01:25]} 34. Rd4 {[%clk 0:00:03]}  Rh6 {[%clk 0:01:24]} 35. f5 {[%clk 0:00:04]}  e5 {[%clk 0:01:19]} 36. Re4 {[%clk 0:00:04]}  g6 {[%clk 0:01:19]} 37. Re1 {[%clk 0:00:02]}  Nf4 {[%clk 0:01:18]} 38. Qe4 {[%clk 0:00:02]}  gxf5 {[%clk 0:01:11]} 39. Qxf5 {[%clk 0:00:03]}  Qe6 {[%clk 0:01:12]} 40. Rxe5 {[%clk 0:00:02]}  Qxf5 {[%clk 0:01:10]} 41. Rxf5 {[%clk 0:00:03]}  Nd3 {[%clk 0:01:05]} 42. Rf3 {[%clk 0:00:03]}  Nxc5 {[%clk 0:01:05]} 43. Bb4 {[%clk 0:00:02]}  Nb7 {[%clk 0:00:56]} 44. Bc3 {[%clk 0:00:02]}  Nxd6 {[%clk 0:00:56]} 45. Rf4 {[%clk 0:00:03]}  Rg6 {[%clk 0:00:55]} 46. Rxa4 {[%clk 0:00:04]}  Nb5 {[%clk 0:00:53]} 47. Ra7 {[%clk 0:00:04]}  Ke6 {[%clk 0:00:54]} 48. Bb4 {[%clk 0:00:03]}  d6 {[%clk 0:00:53]} 49. a4 {[%clk 0:00:04]}  Nd4 {[%clk 0:00:53]} 50. a5 {[%clk 0:00:04]}  Rg4 {[%clk 0:00:51]} 51. Be1 {[%clk 0:00:04]}  Nc2 {[%clk 0:00:48]} 52. Bf2 {[%clk 0:00:04]}  Ra4 {[%clk 0:00:49]} 53. a6 {[%clk 0:00:04]}  Nb4 {[%clk 0:00:49]} 54. Ra8 {[%clk 0:00:05]}  Rxa6 {[%clk 0:00:44]} 55. Rh8 {[%clk 0:00:04]}  Nd3 {[%clk 0:00:44]} 56. Bg3 {[%clk 0:00:04]}  Ra5 {[%clk 0:00:44]} 57. Re8+ {[%clk 0:00:05]}  Kd7 {[%clk 0:00:42]} 58. Rf8 {[%clk 0:00:04]}  Ke7 {[%clk 0:00:43]} 59. Rc8 {[%clk 0:00:05]}  Rc5 {[%clk 0:00:43]} 60. Rh8 {[%clk 0:00:05]}  Ke6 {[%clk 0:00:41]} 61. b3 {[%clk 0:00:04]}  Rf5 {[%clk 0:00:40]} 62. Rd8 {[%clk 0:00:04]}  Ne5 {[%clk 0:00:39]} 63. b4 {[%clk 0:00:04]}  Ng4+ {[%clk 0:00:38]} 64. Kh3 {[%clk 0:00:05]}  Rd5 {[%clk 0:00:37]} 65. Bf4 {[%clk 0:00:04]}  Rd3+ {[%clk 0:00:37]} 66. Bg3 {[%clk 0:00:04]}  f5 {[%clk 0:00:35]} 67. Re8+ {[%clk 0:00:04]}  Kf7 {[%clk 0:00:35]} 68. Rh8 {[%clk 0:00:04]}  f4 {[%clk 0:00:35]} 69. Rxh5 {[%clk 0:00:04]}  Rxg3# {[%clk 0:00:36]} 0-1


[Site "https://www.chess.com"]

[Event "Titled Tuesday Blitz August 08 Late 2023"]
[White "Ponikarovsky, Alexey"]
[Black "Tari, Aryan"]
[WhiteFideId "4122887"]
[BlackFideId "1510045"]
[WhiteElo "2696"]
[BlackElo "2922"]
[Result "1-0"]
[Round "3"]
[TimeControl "180+1"]
[Date "2023.08.08"]
[WhiteClock "0:02:10"]
[BlackClock "0:00:28"]
[Board "16"]

1. e4 {[%clk 0:03:00]}  c5 {[%clk 0:02:45]} 2. d4 {[%clk 0:03:00]}  cxd4 {[%clk 0:02:45]} 3. Nf3 {[%clk 0:03:01]}  Nc6 {[%clk 0:02:43]} 4. Bc4 {[%clk 0:03:01]}  Nf6 {[%clk 0:02:37]} 5. Qe2 {[%clk 0:03:01]}  e6 {[%clk 0:02:30]} 6. O-O {[%clk 0:03:00]}  Nxe4 {[%clk 0:02:26]} 7. Qxe4 {[%clk 0:03:01]}  d5 {[%clk 0:02:26]} 8. Qe2 {[%clk 0:03:02]}  dxc4 {[%clk 0:02:26]} 9. Qxc4 {[%clk 0:03:02]}  Bd7 {[%clk 0:02:20]} 10. Nxd4 {[%clk 0:03:00]}  Rc8 {[%clk 0:02:20]} 11. Nxc6 {[%clk 0:02:57]}  Bxc6 {[%clk 0:02:20]} 12. Qg4 {[%clk 0:02:55]}  h5 {[%clk 0:02:19]} 13. Qh3 {[%clk 0:02:49]}  g5 {[%clk 0:01:59]} 14. Nc3 {[%clk 0:02:41]}  g4 {[%clk 0:01:58]} 15. Qg3 {[%clk 0:02:38]}  Rg8 {[%clk 0:01:26]} 16. Bf4 {[%clk 0:02:31]}  Bc5 {[%clk 0:01:18]} 17. Rad1 {[%clk 0:02:28]}  Qe7 {[%clk 0:01:13]} 18. h4 {[%clk 0:02:25]}  f6 {[%clk 0:01:09]} 19. Rfe1 {[%clk 0:02:23]}  Kf7 {[%clk 0:01:10]} 20. Nd5 {[%clk 0:02:16]}  Bxd5 {[%clk 0:01:07]} 21. Rxd5 {[%clk 0:02:17]}  exd5 {[%clk 0:00:47]} 22. Rxe7+ {[%clk 0:02:16]}  Kxe7 {[%clk 0:00:44]} 23. Qd3 {[%clk 0:02:15]}  Ke6 {[%clk 0:00:44]} 24. c4 {[%clk 0:02:13]}  Rgd8 {[%clk 0:00:32]} 25. cxd5+ {[%clk 0:02:12]}  Kd7 {[%clk 0:00:28]} 26. Qf5+ {[%clk 0:02:11]}  Ke8 {[%clk 0:00:28]} 27. Qe6+ {[%clk 0:02:11]}  Kf8 {[%clk 0:00:28]} 28. Bh6# {[%clk 0:02:10]} 1-0


[Site "https://www.chess.com"]

[Event "Titled Tuesday Blitz August 08 Late 2023"]
[White "Fressinet, Laurent"]
[Black "Rastbod, Ali"]
[WhiteFideId "608742"]
[BlackFideId "12567477"]
[WhiteElo "2915"]
[BlackElo "2692"]
[Result "1-0"]
[Round "3"]
[TimeControl "180+1"]
[Date "2023.08.08"]
[WhiteClock "0:00:12"]
[BlackClock "0:00:04"]
[Board "17"]

1. d4 {[%clk 0:03:00]}  Nf6 {[%clk 0:02:45]} 2. Nf3 {[%clk 0:03:00]}  d5 {[%clk 0:02:44]} 3. Bg5 {[%clk 0:02:59]}  Ne4 {[%clk 0:02:43]} 4. Bh4 {[%clk 0:02:59]}  c5 {[%clk 0:02:44]} 5. e3 {[%clk 0:02:57]}  Qb6 {[%clk 0:02:44]} 6. Nc3 {[%clk 0:02:44]}  Qa5 {[%clk 0:02:43]} 7. Bb5+ {[%clk 0:02:39]}  Nc6 {[%clk 0:02:37]} 8. O-O {[%clk 0:02:31]}  Nxc3 {[%clk 0:02:36]} 9. Bxc6+ {[%clk 0:02:30]}  bxc6 {[%clk 0:02:37]} 10. bxc3 {[%clk 0:02:30]}  Qxc3 {[%clk 0:02:33]} 11. Rb1 {[%clk 0:02:27]}  f6 {[%clk 0:01:53]} 12. Rb3 {[%clk 0:02:12]}  Qa5 {[%clk 0:01:49]} 13. Qb1 {[%clk 0:02:09]}  Bf5 {[%clk 0:01:44]} 14. Rb8+ {[%clk 0:01:57]}  Rxb8 {[%clk 0:01:42]} 15. Qxb8+ {[%clk 0:01:58]}  Kf7 {[%clk 0:01:43]} 16. dxc5 {[%clk 0:01:47]}  e5 {[%clk 0:01:33]} 17. Qb7+ {[%clk 0:01:42]}  Kg6 {[%clk 0:01:07]} 18. Qxc6 {[%clk 0:01:39]}  Qxc5 {[%clk 0:00:55]} 19. Nxe5+ {[%clk 0:01:34]}  Kh5 {[%clk 0:00:55]} 20. Qe8+ {[%clk 0:01:31]}  Bg6 {[%clk 0:00:55]} 21. Nxg6 {[%clk 0:01:23]}  hxg6 {[%clk 0:00:56]} 22. Bg3 {[%clk 0:01:22]}  Qxc2 {[%clk 0:00:50]} 23. Qd7 {[%clk 0:01:20]}  Qf5 {[%clk 0:00:32]} 24. Qxa7 {[%clk 0:01:19]}  g5 {[%clk 0:00:26]} 25. Rd1 {[%clk 0:01:08]}  Kg6 {[%clk 0:00:17]} 26. Qb7 {[%clk 0:01:03]}  Ba3 {[%clk 0:00:16]} 27. h3 {[%clk 0:00:52]}  Rd8 {[%clk 0:00:10]} 28. Qb3 {[%clk 0:00:44]}  Bf8 {[%clk 0:00:06]} 29. a4 {[%clk 0:00:39]}  d4 {[%clk 0:00:06]} 30. Rxd4 {[%clk 0:00:35]}  Ra8 {[%clk 0:00:03]} 31. e4 {[%clk 0:00:31]}  Qa5 {[%clk 0:00:04]} 32. Qf3 {[%clk 0:00:29]}  Bc5 {[%clk 0:00:03]} 33. Rd5 {[%clk 0:00:26]}  Qe1+ {[%clk 0:00:03]} 34. Kh2 {[%clk 0:00:26]}  Be7 {[%clk 0:00:03]} 35. Rd7 {[%clk 0:00:22]}  Re8 {[%clk 0:00:03]} 36. Qf5+ {[%clk 0:00:21]}  Kf7 {[%clk 0:00:03]} 37. Qd5+ {[%clk 0:00:20]}  Kf8 {[%clk 0:00:03]} 38. a5 {[%clk 0:00:17]}  Qa1 {[%clk 0:00:02]} 39. Bd6 {[%clk 0:00:15]}  Bxd6+ {[%clk 0:00:03]} 40. Qxd6+ {[%clk 0:00:15]}  Kg8 {[%clk 0:00:04]} 41. Qd5+ {[%clk 0:00:15]}  Kh7 {[%clk 0:00:03]} 42. Qf7 {[%clk 0:00:13]}  Qe5+ {[%clk 0:00:04]} 43. g3 {[%clk 0:00:13]}  f5 {[%clk 0:00:04]} 44. Qxf5+ {[%clk 0:00:12]}  Qxf5 {[%clk 0:00:05]} 45. exf5 {[%clk 0:00:12]}  Re2 {[%clk 0:00:05]} 46. Kg2 {[%clk 0:00:12]}  Kg8 {[%clk 0:00:05]} 47. a6 {[%clk 0:00:12]}  Ra2 {[%clk 0:00:06]} 48. a7 {[%clk 0:00:12]}  Kh7 {[%clk 0:00:04]} 49. f6 {[%clk 0:00:12]} 1-0


[Site "https://www.chess.com"]

[Event "Titled Tuesday Blitz August 08 Late 2023"]
[White "Tahbaz, Arash"]
[Black "Weishaeutel, Moritz"]
[WhiteFideId "12528846"]
[BlackFideId "12967300"]
[WhiteElo "2889"]
[BlackElo "2656"]
[Result "1-0"]
[Round "3"]
[TimeControl "180+1"]
[Date "2023.08.08"]
[WhiteClock "0:01:12"]
[BlackClock "0:00:27"]
[Board "22"]

1. Nf3 {[%clk 0:03:00]}  Nf6 {[%clk 0:02:56]} 2. g3 {[%clk 0:03:01]}  g6 {[%clk 0:02:56]} 3. Bg2 {[%clk 0:03:02]}  Bg7 {[%clk 0:02:57]} 4. O-O {[%clk 0:03:02]}  O-O {[%clk 0:02:58]} 5. d3 {[%clk 0:03:01]}  d5 {[%clk 0:02:58]} 6. Nbd2 {[%clk 0:03:02]}  c5 {[%clk 0:02:58]} 7. e4 {[%clk 0:03:02]}  Nc6 {[%clk 0:02:59]} 8. Re1 {[%clk 0:03:01]}  e5 {[%clk 0:02:58]} 9. exd5 {[%clk 0:03:02]}  Nxd5 {[%clk 0:02:59]} 10. Nc4 {[%clk 0:03:03]}  Re8 {[%clk 0:02:57]} 11. Ng5 {[%clk 0:03:03]}  h6 {[%clk 0:02:11]} 12. Ne4 {[%clk 0:03:03]}  Bf8 {[%clk 0:01:43]} 13. Ned6 {[%clk 0:03:03]}  Bxd6 {[%clk 0:01:42]} 14. Bxd5 {[%clk 0:03:03]}  Bf8 {[%clk 0:01:40]} 15. Qf3 {[%clk 0:03:03]}  Be6 {[%clk 0:01:35]} 16. Bxe6 {[%clk 0:02:13]}  Rxe6 {[%clk 0:01:35]} 17. Be3 {[%clk 0:02:14]}  b6 {[%clk 0:01:28]} 18. h4 {[%clk 0:02:12]}  h5 {[%clk 0:01:24]} 19. Rad1 {[%clk 0:02:08]}  Qc7 {[%clk 0:01:21]} 20. Nd2 {[%clk 0:02:01]}  Rae8 {[%clk 0:01:15]} 21. Ne4 {[%clk 0:02:00]}  Nd4 {[%clk 0:01:13]} 22. Bxd4 {[%clk 0:01:58]}  exd4 {[%clk 0:01:14]} 23. Nf6+ {[%clk 0:01:58]}  Rxf6 {[%clk 0:01:00]} 24. Qxf6 {[%clk 0:01:58]}  Rd8 {[%clk 0:00:54]} 25. Re4 {[%clk 0:01:56]}  Rd5 {[%clk 0:00:53]} 26. Re8 {[%clk 0:01:52]}  Rf5 {[%clk 0:00:53]} 27. Rxf8+ {[%clk 0:01:16]}  Kxf8 {[%clk 0:00:49]} 28. Qh8+ {[%clk 0:01:16]}  Ke7 {[%clk 0:00:50]} 29. Re1+ {[%clk 0:01:17]}  Kd7 {[%clk 0:00:50]} 30. Qe8+ {[%clk 0:01:16]}  Kd6 {[%clk 0:00:49]} 31. Qf8+ {[%clk 0:01:16]}  Kc6 {[%clk 0:00:43]} 32. Re7 {[%clk 0:01:13]}  Qd6 {[%clk 0:00:32]} 33. Qe8+ {[%clk 0:01:12]}  Kd5 {[%clk 0:00:32]} 34. Rd7 {[%clk 0:01:12]}  Re5 {[%clk 0:00:28]} 35. Qxf7+ {[%clk 0:01:11]}  Kc6 {[%clk 0:00:28]} 36. Rxd6+ {[%clk 0:01:12]}  Kxd6 {[%clk 0:00:27]} 37. Qxg6+ {[%clk 0:01:12]} 1-0


[Site "https://www.chess.com"]